bitfinex-derivatives/quotes_BTCF0:USTF0_20250720
["timestamp","ask_amount","ask_price","bid_price","bid_amount"]
[1753031464275,0.76457837,118340.0,118330.0,1.4691645]
[1753031464476,0.76457837,118340.0,118330.0,1.55336548]
[1753031464667,0.76457837,118340.0,118330.0,1.72230998]
[1753031464869,0.76457837,118340.0,118330.0,1.55336548]
[1753031465678,0.76457837,118340.0,118330.0,0.64414]
[1753031465878,0.76457837,118340.0,118330.0,1.29874]
[1753031466774,0.76457837,118340.0,118330.0,1.55188548]
[1753031466978,0.76457837,118340.0,118330.0,1.29874]
[1753031467375,0.76457837,118340.0,118330.0,1.55188548]
[1753031468177,0.76457837,118340.0,118330.0,1.29874]
[1753031468473,0.76457837,118340.0,118330.0,1.55188548]
[1753031471184,0.76457837,118340.0,118330.0,1.514778]
[1753031477598,0.45687837,118340.0,118330.0,1.6837226]
[1753031478096,0.48077837,118340.0,118330.0,1.6837226]
[1753031478296,0.48077837,118340.0,118330.0,1.6817226]
[1753031478495,0.52848837,118340.0,118330.0,1.4656846]
[1753031478692,0.65410837,118340.0,118330.0,1.6817228]
[1753031478887,0.65410837,118340.0,118330.0,1.4656848]
[1753031479091,0.48077837,118340.0,118330.0,1.0271228]
[1753031479294,0.46171653,118340.0,118330.0,1.6751228]
[1753031479499,0.46171653,118340.0,118330.0,1.6923632]
[1753031479696,0.46171693,118340.0,118330.0,1.6923632]
[1753031479997,0.26888663,118340.0,118330.0,1.6923632]
[1753031480209,0.43781693,118340.0,118330.0,1.6923632]
[1753031480998,0.43781693,118340.0,118330.0,2.0323632]
[1753031481198,0.06934663,118340.0,118330.0,1.8613712]
[1753031481498,0.6154286,118360.0,118350.0,0.1783761]
[1753031481793,0.4311302,118360.0,118350.0,1.9791321]
[1753031481999,0.22,118360.0,118350.0,2.3491321]
[1753031482196,0.22,118360.0,118350.0,2.6576844]
[1753031482395,0.22,118360.0,118350.0,2.0106044]
[1753031482596,0.22,118360.0,118350.0,2.70458189]
[1753031482795,0.21636,118360.0,118350.0,2.70458189]
[1753031482996,0.21636,118360.0,118350.0,2.41298189]
[1753031483292,0.21636,118360.0,118350.0,2.83196589]
[1753031483490,0.61249668,118380.0,118370.0,0.1688877]
[1753031483690,0.54020668,118380.0,118370.0,1.7538057]
[1753031483892,0.65456668,118380.0,118370.0,1.7538057]
[1753031484098,0.6376171,118380.0,118370.0,1.7538057]
[1753031484298,0.6376171,118380.0,118370.0,1.77083656]
[1753031484498,0.6376171,118380.0,118370.0,1.76783656]
[1753031484695,0.5953956,118380.0,118370.0,1.76783656]
[1753031484997,0.6033956,118380.0,118370.0,1.76783656]
[1753031485394,0.5611744,118380.0,118370.0,1.76739656]
[1753031485601,0.5581744,118380.0,118370.0,1.76739656]
[1753031485800,0.5581744,118380.0,118370.0,1.83426352]
[1753031486098,0.5551744,118380.0,118370.0,1.83426352]
[1753031486788,0.5129554,118380.0,118370.0,1.83426352]
[1753031486989,0.34407,118380.0,118370.0,1.83426352]
[1753031487291,0.34407,118380.0,118370.0,2.20426352]
[1753031487488,0.34407,118380.0,118370.0,1.83426352]
[1753031487693,0.34407,118380.0,118370.0,1.83626352]
[1753031487998,0.34407,118380.0,118370.0,1.83726352]
[1753031488599,0.34407,118380.0,118370.0,2.14726352]
[1753031488899,0.5129434,118380.0,118370.0,1.60219466]
[1753031489100,0.5129434,118380.0,118370.0,1.81823266]
[1753031489802,0.5378834,118380.0,118370.0,0.95635466]
[1753031490003,0.5378834,118380.0,118370.0,1.81915266]
[1753031490301,0.36901,118380.0,118370.0,1.81915266]
[1753031490897,0.5378834,118380.0,118370.0,1.81915266]
[1753031491204,0.36901,118380.0,118370.0,1.81915266]
[1753031491500,0.36901,118380.0,118370.0,2.19915266]
[1753031492396,0.36901,118380.0,118370.0,1.81915266]
[1753031492602,0.36901,118380.0,118370.0,2.18915266]
[1753031492897,0.182,118380.0,118370.0,2.14915266]
[1753031493301,0.182,118380.0,118370.0,2.60970466]
[1753031494104,0.182,118380.0,118370.0,2.41064964]
[1753031494397,0.182,118380.0,118370.0,2.62668764]
[1753031494797,0.182,118380.0,118370.0,2.45773564]
[1753031496404,0.182,118380.0,118370.0,2.49773564]
[1753031499402,0.182,118380.0,118370.0,2.28169764]
[1753031499703,0.182,118380.0,118370.0,2.49773564]
[1753031499998,0.41775,118400.0,118390.0,0.1688592]
[1753031500203,0.42775,118400.0,118390.0,2.3063752]
[1753031501005,0.42875,118400.0,118390.0,2.3463752]
[1753031501304,0.42875,118400.0,118390.0,2.3363752]
[1753031502104,0.5975949,118400.0,118390.0,2.1203372]
[1753031502305,0.5975949,118400.0,118390.0,2.1103372]
[1753031502807,0.5975949,118400.0,118390.0,2.0419372]
[1753031503003,0.5975949,118400.0,118390.0,2.4019372]
[1753031503203,0.6225349,118400.0,118390.0,2.0419372]
[1753031503596,0.6235349,118400.0,118390.0,2.0419372]
[1753031504796,0.45469,118400.0,118390.0,2.0419372]
[1753031505496,0.6235349,118400.0,118390.0,1.8258992]
[1753031505698,0.6235349,118400.0,118390.0,2.0419372]
[1753031505898,0.45469,118400.0,118390.0,2.0419372]
[1753031506307,0.6235349,118400.0,118390.0,2.0419372]
[1753031506604,0.45469,118400.0,118390.0,2.0419372]
[1753031507307,0.35443781,118420.0,118410.0,0.4572607]
[1753031507509,0.52325421,118420.0,118410.0,1.7015287]
[1753031508708,0.52625421,118420.0,118410.0,1.7015287]
[1753031509310,0.54421421,118420.0,118410.0,1.7015287]
[1753031509510,0.54621421,118420.0,118410.0,1.7015287]
[1753031510206,0.54421421,118420.0,118410.0,1.7015287]
[1753031510411,0.54321421,118420.0,118410.0,1.7025287]
[1753031511811,0.75925221,118420.0,118410.0,1.16785]
[1753031512109,0.75925221,118420.0,118410.0,0.80705]
[1753031512311,0.54321421,118420.0,118410.0,0.80705]
[1753031512511,0.75925221,118420.0,118410.0,0.80705]
[1753031513410,0.75925221,118420.0,118410.0,1.16785]
[1753031513615,0.75925221,118420.0,118410.0,0.80705]
[1753031513911,0.75925221,118420.0,118410.0,0.52429]
[1753031516214,0.75925221,118420.0,118410.0,0.54915]
[1753031518319,0.54321421,118420.0,118410.0,0.54915]
[1753031518510,0.75925221,118420.0,118410.0,0.54915]
[1753031518709,1.12724648,118440.0,118410.0,0.54915]
[1753031518906,0.2110239,118420.0,118410.0,0.54915]
[1753031519108,0.4710239,118420.0,118410.0,0.54715]
[1753031519311,0.4710239,118420.0,118410.0,0.763188]
[1753031520120,0.4710239,118420.0,118410.0,0.795938]
[1753031520518,0.4710239,118420.0,118410.0,0.402388]
[1753031520918,0.4730239,118420.0,118410.0,0.401388]
[1753031521118,0.4730239,118420.0,118410.0,0.18535]
[1753031521515,0.1688306,118410.0,118400.0,0.19364]
[1753031521719,1.31720893,118410.0,118400.0,0.16878]
[1753031521921,0.1688449,118400.0,118390.0,0.57174343]
[1753031522121,0.4088449,118400.0,118390.0,0.57174343]
[1753031523818,0.4088449,118400.0,118390.0,0.55444]
[1753031524519,0.4098449,118400.0,118390.0,0.55644]
[1753031524914,0.4098449,118400.0,118390.0,0.894458]
[1753031525525,0.4098449,118400.0,118390.0,0.896458]
[1753031525923,0.4098449,118400.0,118390.0,1.32358]
[1753031526821,0.4098449,118400.0,118390.0,1.539618]
[1753031528121,0.4098449,118400.0,118390.0,1.32358]
[1753031528424,0.4098449,118400.0,118390.0,1.539618]
[1753031531728,0.4098449,118400.0,118390.0,1.32358]
[1753031532628,0.4098449,118400.0,118390.0,1.539258]
[1753031533027,0.4098449,118400.0,118390.0,1.32322]
[1753031533227,0.4098449,118400.0,118390.0,1.539258]
[1753031533427,0.4098449,118400.0,118390.0,1.32322]
[1753031533629,0.4098449,118400.0,118390.0,1.539258]
[1753031537729,0.4098449,118400.0,118390.0,1.32322]
[1753031538032,0.4098449,118400.0,118390.0,1.539258]
[1753031538424,0.4098449,118400.0,118390.0,1.178458]
[1753031538619,0.4098449,118400.0,118390.0,1.539258]
[1753031543932,0.4098449,118400.0,118390.0,1.32322]
[1753031544233,0.4098449,118400.0,118390.0,1.539258]
[1753031545433,0.4098449,118400.0,118390.0,1.32322]
[1753031545633,0.4098449,118400.0,118390.0,1.539258]
[1753031546628,0.4098449,118400.0,118390.0,1.32322]
[1753031546829,0.4098449,118400.0,118390.0,1.539258]
[1753031547027,0.6258829,118400.0,118390.0,0.24309]
[1753031547834,0.6258829,118400.0,118390.0,0.32301]
[1753031548234,0.68636766,118400.0,118390.0,0.32301]
[1753031550235,0.47032966,118400.0,118390.0,0.32301]
[1753031550535,1.11224966,118400.0,118390.0,0.539048]
[1753031550734,0.47032966,118400.0,118390.0,0.539048]
[1753031550926,0.4098449,118400.0,118390.0,0.899848]
[1753031551234,0.20625649,118410.0,118390.0,1.3269588]
[1753031551536,0.37509899,118410.0,118400.0,1.633216]
[1753031551738,0.63509899,118410.0,118400.0,1.8020609]
[1753031551935,0.57461423,118410.0,118400.0,1.8020609]
[1753031552135,0.53240353,118410.0,118400.0,1.8020609]
[1753031552533,0.53240353,118410.0,118400.0,1.8030609]
[1753031552733,0.53340353,118410.0,118400.0,1.8030609]
[1753031552935,0.53340353,118410.0,118400.0,1.5870229]
[1753031554536,0.53340353,118410.0,118400.0,1.418178]
[1753031555740,0.53340353,118410.0,118400.0,1.5870229]
[1753031556231,0.53340353,118410.0,118400.0,1.8030609]
[1753031559337,0.44898283,118410.0,118400.0,1.3709849]
[1753031559538,0.44898283,118410.0,118400.0,1.8030609]
[1753031560545,0.68246283,118410.0,118400.0,0.899158]
[1753031560741,0.71488283,118410.0,118400.0,1.540318]
[1753031560934,0.76116283,118410.0,118400.0,0.68312]
[1753031561133,0.97720083,118410.0,118400.0,0.65865]
[1753031561433,0.97720083,118410.0,118400.0,0.21793]
[1753031561638,1.03768559,118410.0,118400.0,0.72275]
[1753031561853,0.4810249,118400.0,118390.0,0.29685]
[1753031562034,0.4810249,118400.0,118390.0,0.93785]
[1753031562035,0.79150966,118400.0,118390.0,0.93785]
[1753031562235,1.00754766,118400.0,118390.0,0.29685]
[1753031563039,1.00754766,118400.0,118390.0,0.29785]
[1753031563242,1.36834766,118400.0,118390.0,0.29985]
[1753031563444,1.36934766,118400.0,118390.0,0.29985]
[1753031564341,1.36934766,118400.0,118390.0,0.29885]
[1753031564540,1.37034766,118400.0,118390.0,0.29885]
[1753031564741,1.3108629,118400.0,118390.0,0.29785]
[1753031565440,1.0948249,118400.0,118390.0,0.29785]
[1753031565636,1.3108629,118400.0,118390.0,0.29785]
[1753031566237,0.4810534,118380.0,118370.0,0.848628]
[1753031566432,0.4810534,118380.0,118370.0,1.489348]
[1753031566433,0.7510534,118380.0,118370.0,1.489348]
[1753031566739,0.7510534,118380.0,118370.0,1.538878]
[1753031566942,0.7510534,118380.0,118370.0,0.898158]
[1753031567438,0.7510534,118380.0,118370.0,1.538798]
[1753031567838,0.7530534,118380.0,118370.0,0.898158]
[1753031568044,0.7530534,118380.0,118370.0,0.899158]
[1753031568339,0.7067734,118380.0,118370.0,1.539758]
[1753031568844,0.7047734,118380.0,118370.0,1.538758]
[1753031569041,0.7067734,118380.0,118370.0,1.538758]
[1753031569538,0.7067734,118380.0,118370.0,1.539758]
[1753031569539,0.5910634,118380.0,118370.0,1.539758]
[1753031569837,0.4533734,118380.0,118370.0,1.539758]
[1753031570442,0.4513734,118380.0,118370.0,1.539758]
[1753031570644,0.4533734,118380.0,118370.0,1.539758]
[1753031571039,0.4533734,118380.0,118370.0,1.7086456]
[1753031571345,0.4533734,118380.0,118370.0,1.539758]
[1753031571642,0.4533734,118380.0,118370.0,1.32372]
[1753031571944,0.4533734,118380.0,118370.0,1.539758]
[1753031572144,0.4533734,118380.0,118370.0,1.7086456]
[1753031572346,0.4533734,118380.0,118370.0,1.32372]
[1753031572546,0.4533734,118380.0,118370.0,1.7086456]
[1753031572741,0.4408734,118380.0,118370.0,1.7086456]
[1753031573247,0.4408734,118380.0,118370.0,1.539758]
[1753031573441,0.4408734,118380.0,118370.0,1.7086456]
[1753031574253,0.4408734,118380.0,118370.0,1.539758]
[1753031575449,0.4408734,118380.0,118370.0,1.7086456]
[1753031575748,0.4408734,118380.0,118370.0,1.539758]
[1753031576544,0.4408734,118380.0,118370.0,1.7086456]
[1753031576948,0.4408734,118380.0,118370.0,1.539758]
[1753031577148,0.4408734,118380.0,118370.0,1.7086456]
[1753031577746,0.4158734,118380.0,118370.0,2.0186456]
[1753031577948,0.4158734,118380.0,118370.0,1.7086456]
[1753031579851,0.4158734,118380.0,118370.0,2.0002456]
[1753031581752,0.4158734,118380.0,118370.0,1.08533896]
[1753031582049,0.4158734,118380.0,118370.0,1.72509896]
[1753031582451,0.4158734,118380.0,118370.0,1.08333896]
[1753031582748,0.4158734,118380.0,118370.0,1.72297896]
[1753031586351,0.4158734,118380.0,118370.0,1.72273896]
[1753031586847,0.4158734,118380.0,118370.0,1.08333896]
[1753031587049,0.4158734,118380.0,118370.0,1.72261896]
[1753031587456,0.4158734,118380.0,118370.0,1.75287445]
[1753031587648,0.4158734,118380.0,118370.0,1.72261896]
[1753031588252,0.4158734,118380.0,118370.0,1.75287445]
[1753031591654,0.4158734,118380.0,118370.0,2.04447445]
[1753031595560,0.4158734,118380.0,118370.0,1.82843645]
[1753031595752,0.4158734,118380.0,118370.0,2.04447445]
[1753031602063,0.4158734,118380.0,118370.0,1.40519445]
[1753031602261,0.4158734,118380.0,118370.0,2.04327445]
[1753031604670,0.4158734,118380.0,118370.0,2.01301896]
[1753031605168,0.4158734,118380.0,118370.0,2.34301896]
[1753031605369,0.4158734,118380.0,118370.0,2.01301896]
[1753031605572,0.4044534,118380.0,118370.0,2.34301896]
[1753031606869,0.4044534,118380.0,118370.0,2.01301896]
[1753031607170,0.4044534,118380.0,118370.0,2.36301896]
[1753031608771,0.4044534,118380.0,118370.0,2.01301896]
[1753031610873,0.4282934,118380.0,118370.0,1.79698096]
[1753031611073,0.4282934,118380.0,118370.0,2.01301896]
[1753031612075,0.25942,118380.0,118370.0,2.01301896]
[1753031612273,0.23558,118380.0,118370.0,2.39301896]
[1753031613273,0.23558,118380.0,118370.0,2.01301896]
[1753031613471,0.23558,118380.0,118370.0,2.32301896]
[1753031614569,0.4044534,118380.0,118370.0,1.84239845]
[1753031614775,0.4044534,118380.0,118370.0,2.05843645]
[1753031614972,0.4044534,118380.0,118370.0,2.39843645]
[1753031615572,0.25942,118380.0,118370.0,2.39843645]
[1753031615970,0.25942,118380.0,118370.0,2.03963645]
[1753031616169,0.25942,118380.0,118370.0,2.76123645]
[1753031616575,0.25942,118380.0,118370.0,2.42123645]
[1753031617073,0.25942,118380.0,118370.0,2.73123645]
[1753031617270,0.25942,118380.0,118370.0,2.42123645]
[1753031621375,0.25942,118380.0,118370.0,2.20519845]
[1753031621576,0.25942,118380.0,118370.0,2.42123645]
[1753031622377,0.25942,118380.0,118370.0,2.74123645]
[1753031622984,0.25942,118380.0,118370.0,2.42123645]
[1753031623275,0.25942,118380.0,118370.0,2.77123645]
[1753031623476,0.3540977,118400.0,118390.0,0.4413691]
[1753031623670,0.27384,118400.0,118390.0,2.3068471]
[1753031624073,0.27384,118400.0,118390.0,2.5228851]
[1753031624281,0.27384,118400.0,118390.0,2.91492498]
[1753031624282,0.25,118400.0,118390.0,2.91492498]
[1753031624477,0.25,118400.0,118390.0,2.64029219]
[1753031624783,0.251,118400.0,118390.0,2.7161182]
[1753031625684,0.252,118400.0,118390.0,2.68670968]
[1753031626278,0.252,118400.0,118390.0,2.71708525]
[1753031626783,0.253,118400.0,118390.0,2.72008525]
[1753031627184,0.253,118400.0,118390.0,2.28800925]
[1753031627385,0.252,118400.0,118390.0,2.72208525]
[1753031628394,0.252,118400.0,118390.0,2.67666776]
[1753031629495,0.252,118400.0,118390.0,2.32666776]
[1753031629995,0.252,118400.0,118390.0,2.64666776]
[1753031630291,0.252,118400.0,118390.0,2.93826776]
[1753031630593,0.4208448,118400.0,118390.0,2.93826776]
[1753031630994,0.252,118400.0,118390.0,2.93826776]
[1753031637496,0.08516,118400.0,118390.0,2.93826776]
[1753031637690,0.252,118400.0,118390.0,2.93826776]
[1753031638491,0.202,118400.0,118390.0,2.93826776]
[1753031638696,0.66589631,118420.0,118410.0,0.4481706]
[1753031638697,0.67134881,118420.0,118410.0,0.4481706]
[1753031638894,0.47134881,118420.0,118410.0,2.6423686]
[1753031639095,0.47108471,118420.0,118410.0,2.6423686]
[1753031639293,0.28331,118420.0,118410.0,2.6423686]
[1753031639493,0.28331,118420.0,118410.0,2.65923447]
[1753031639897,0.24822,118420.0,118410.0,2.66123447]
[1753031640100,0.27293,118420.0,118410.0,2.66123447]
[1753031640396,0.27293,118420.0,118410.0,2.33123447]
[1753031640699,0.19471,118420.0,118410.0,2.71123447]
[1753031641095,0.171,118420.0,118410.0,2.71123447]
[1753031641303,0.171,118420.0,118410.0,2.66123447]
[1753031641802,0.19471,118420.0,118410.0,2.66123447]
[1753031642096,0.171,118420.0,118410.0,2.69161004]
[1753031643404,0.171,118420.0,118410.0,2.66123447]
[1753031643904,0.3398163,118420.0,118410.0,2.66123447]
[1753031644105,0.3408163,118420.0,118410.0,2.66623447]
[1753031645395,0.3408163,118420.0,118410.0,2.71567447]
[1753031645600,0.3645263,118420.0,118410.0,2.71567447]
[1753031645801,0.19571,118420.0,118410.0,2.71567447]
[1753031646502,0.172,118420.0,118410.0,2.71567447]
[1753031648403,0.172,118420.0,118410.0,2.08127447]
[1753031648604,0.172,118420.0,118410.0,1.70127447]
[1753031648802,0.172,118420.0,118410.0,2.68527447]
[1753031649210,0.3645263,118420.0,118410.0,2.11923647]
[1753031649504,0.6475763,118420.0,118410.0,2.69527447]
[1753031649907,0.5305263,118420.0,118410.0,2.69527447]
[1753031650306,0.36171,118420.0,118410.0,2.69527447]
[1753031651813,0.28531,118420.0,118410.0,2.69527447]
[1753031652813,0.25475,118420.0,118410.0,2.69527447]
[1753031654012,0.4235663,118420.0,118410.0,2.69527447]
[1753031654710,0.25475,118420.0,118410.0,2.69527447]
[1753031654912,0.4235663,118420.0,118410.0,2.69527447]
[1753031656205,0.25475,118420.0,118410.0,2.69527447]
[1753031656809,0.4235663,118420.0,118410.0,2.69527447]
[1753031657011,0.4235663,118420.0,118410.0,2.06127447]
[1753031657207,0.4235663,118420.0,118410.0,2.33451447]
[1753031657406,0.4235663,118420.0,118410.0,2.68451447]
[1753031657811,0.4235663,118420.0,118410.0,2.05127447]
[1753031658011,0.4235663,118420.0,118410.0,2.68451447]
[1753031658611,0.4235663,118420.0,118410.0,2.33443447]
[1753031659206,0.4235663,118420.0,118410.0,2.33431447]
[1753031659816,0.4235663,118420.0,118410.0,1.70127447]
[1753031660008,0.4235663,118420.0,118410.0,2.33423447]
[1753031661014,0.4235663,118420.0,118410.0,1.70127447]
[1753031661214,0.4235663,118420.0,118410.0,2.33415447]
[1753031662112,0.4235663,118420.0,118410.0,2.33411447]
[1753031662313,0.4235663,118420.0,118410.0,1.70127447]
[1753031662516,0.4235663,118420.0,118410.0,2.33403447]
[1753031663214,0.4235663,118420.0,118410.0,2.37945196]
[1753031666809,0.4235663,118420.0,118410.0,2.37745196]
[1753031667412,0.5303363,118420.0,118410.0,2.37745196]
[1753031667615,0.6737676,118420.0,118410.0,1.74669196]
[1753031667816,0.6737676,118420.0,118410.0,2.31702053]
[1753031668120,0.6737676,118420.0,118410.0,2.36216053]
[1753031668620,0.6737676,118420.0,118410.0,2.07056053]
[1753031672923,0.5049513,118420.0,118410.0,2.07056053]
[1753031673119,0.5049513,118420.0,118410.0,2.17807975]
[1753031673318,0.2142313,118420.0,118410.0,2.67985836]
[1753031673518,0.172,118420.0,118410.0,2.69490979]
[1753031674521,0.7069074,118440.0,118430.0,0.2456221]
[1753031674820,0.26512,118440.0,118430.0,2.64638793]
[1753031675020,0.23,118440.0,118430.0,2.64638793]
[1753031675220,0.23,118440.0,118430.0,2.59215776]
[1753031675729,0.23,118440.0,118430.0,2.62253003]
[1753031676027,0.23,118440.0,118430.0,2.63757525]
[1753031676227,0.231,118440.0,118430.0,2.63957525]
[1753031676526,0.231,118440.0,118430.0,2.64257525]
[1753031676732,0.231,118440.0,118430.0,2.64657525]
[1753031679225,0.0184697,118450.0,118440.0,0.2456078]
[1753031679429,0.3143497,118450.0,118440.0,1.52378616]
[1753031679932,0.3143497,118450.0,118440.0,1.18378616]
[1753031680134,0.6316733,118450.0,118440.0,1.22512897]
[1753031680536,0.6316733,118450.0,118440.0,1.56512897]
[1753031680825,0.6316733,118450.0,118440.0,1.22512897]
[1753031681024,0.7503733,118450.0,118440.0,1.85612897]
[1753031681529,0.7513733,118450.0,118440.0,1.43102331]
[1753031681832,0.7329036,118450.0,118440.0,1.86412897]
[1753031684336,0.7329036,118450.0,118440.0,1.83382627]
[1753031688041,0.7329036,118450.0,118440.0,1.20282627]
[1753031688535,0.7329036,118450.0,118440.0,1.83302627]
[1753031689035,0.7329036,118450.0,118440.0,1.20282627]
[1753031689226,0.7329036,118450.0,118440.0,1.57609063]
[1753031689534,0.7329036,118450.0,118440.0,0.75314063]
[1753031689736,0.7329036,118450.0,118440.0,1.1677478]
[1753031690230,0.7329036,118450.0,118440.0,0.3688]
[1753031690440,0.7329036,118450.0,118440.0,1.1676281]
[1753031691628,0.94845643,118450.0,118440.0,0.99872]
[1753031691835,0.7329036,118450.0,118440.0,1.1675081]
[1753031694736,0.7329036,118450.0,118440.0,0.99872]
[1753031697440,0.7329036,118450.0,118440.0,0.75314093]
[1753031697635,0.7329036,118450.0,118440.0,1.38270093]
[1753031699740,0.7329036,118450.0,118440.0,1.21391283]
[1753031699940,0.7329036,118450.0,118440.0,1.38270093]
[1753031701941,0.7329036,118450.0,118440.0,1.29207283]
[1753031702145,0.7329036,118450.0,118440.0,1.46086093]
[1753031702944,0.7329036,118450.0,118440.0,1.29207283]
[1753031703244,0.7329036,118450.0,118440.0,1.46086093]
[1753031703946,0.7329036,118450.0,118440.0,1.29207283]
[1753031704143,0.7329036,118450.0,118440.0,1.46086093]
[1753031704754,0.7329036,118450.0,118440.0,1.29207283]
[1753031705947,0.7329036,118450.0,118440.0,1.29119283]
[1753031706348,0.7329036,118450.0,118440.0,1.07564]
[1753031706750,0.7329036,118450.0,118440.0,1.29119283]
[1753031706946,0.7329036,118450.0,118440.0,0.66251283]
[1753031707144,0.7329036,118450.0,118440.0,1.29099283]
[1753031707346,0.7329036,118450.0,118440.0,1.07544]
[1753031707544,0.7329036,118450.0,118440.0,1.29099283]
[1753031707747,0.7329036,118450.0,118440.0,1.07544]
[1753031709450,0.7329036,118450.0,118440.0,0.3688]
[1753031709652,0.94845643,118450.0,118440.0,0.99704]
[1753031709949,0.94845643,118450.0,118440.0,0.99504]
[1753031712247,0.94845643,118450.0,118440.0,0.3668]
[1753031712454,1.11731243,118450.0,118440.0,0.3668]
[1753031712655,1.11731243,118450.0,118440.0,0.9948]
[1753031713556,1.11731243,118450.0,118440.0,0.99476]
[1753031714447,1.74519243,118450.0,118440.0,0.99476]
[1753031714652,1.74519243,118450.0,118440.0,0.9946]
[1753031715053,1.74519243,118450.0,118440.0,0.3668]
[1753031715258,1.74519243,118450.0,118440.0,0.99452]
[1753031718355,1.74519243,118450.0,118440.0,0.63572]
[1753031718555,1.80567719,118450.0,118440.0,0.63572]
[1753031718853,1.74479243,118450.0,118440.0,0.63548]
[1753031720748,1.57593643,118450.0,118440.0,0.63548]
[1753031721451,0.94845643,118450.0,118440.0,0.008]
[1753031721755,1.74447243,118450.0,118440.0,0.008]
[1753031721947,0.4928586,118440.0,118430.0,0.98796]
[1753031722145,0.94841143,118440.0,118430.0,0.98796]
[1753031722552,0.94841143,118440.0,118430.0,0.3608]
[1753031722758,0.94841143,118440.0,118430.0,0.98788]
[1753031722952,0.7328586,118440.0,118430.0,0.98788]
[1753031723153,0.94841143,118440.0,118430.0,0.98788]
[1753031723555,0.94841143,118440.0,118430.0,0.98988]
[1753031724055,0.94841143,118440.0,118430.0,0.99288]
[1753031724255,0.94941143,118440.0,118430.0,0.99288]
[1753031724649,0.94941143,118440.0,118430.0,0.3658]
[1753031724955,0.4919728,118430.0,118420.0,0.3608]
[1753031725150,0.4698971,118420.0,118410.0,0.98768]
[1753031725357,0.7236571,118420.0,118410.0,0.7081]
[1753031725851,0.7236571,118420.0,118410.0,1.0689]
[1753031726153,0.7236571,118420.0,118410.0,1.18499]
[1753031726660,0.7236571,118420.0,118410.0,1.0689]
[1753031727461,0.7256571,118420.0,118410.0,0.3618]
[1753031727659,0.94120993,118420.0,118410.0,0.3618]
[1753031727962,1.00987776,118420.0,118410.0,0.62764]
[1753031728156,1.00987776,118420.0,118410.0,0.001]
[1753031729057,0.4651114,118410.0,118400.0,1.18475]
[1753031729258,0.7188714,118410.0,118400.0,1.18475]
[1753031729561,0.7188714,118410.0,118400.0,1.56914843]
[1753031730557,0.7198714,118410.0,118400.0,1.40030283]
[1753031730756,0.7218714,118410.0,118400.0,1.40030283]
[1753031731150,0.7198714,118410.0,118400.0,1.40030283]
[1753031731355,0.1688456,118400.0,118390.0,0.57507721]
[1753031731560,0.7388856,118400.0,118390.0,0.57507721]
[1753031731758,0.7388856,118400.0,118390.0,1.20143721]
[1753031732357,0.7388856,118400.0,118390.0,1.08526721]
[1753031732559,0.7388856,118400.0,118390.0,0.45898721]
[1753031732761,0.7388856,118400.0,118390.0,1.08526721]
[1753031733062,0.95443843,118400.0,118390.0,0.37776721]
[1753031733266,0.95443843,118400.0,118390.0,0.98704]
[1753031733561,0.95443843,118400.0,118390.0,0.987]
[1753031733757,0.95643843,118400.0,118390.0,0.987]
[1753031734861,0.7408856,118400.0,118390.0,1.06822]
[1753031735660,0.7408856,118400.0,118390.0,1.0681]
[1753031736061,0.95643843,118400.0,118390.0,1.0681]
[1753031736268,0.7408856,118400.0,118390.0,0.7073]
[1753031736662,0.7408856,118400.0,118390.0,1.0681]
[1753031737269,0.7408856,118400.0,118390.0,0.7073]
[1753031737570,0.7408856,118400.0,118390.0,1.0681]
[1753031738664,0.7418856,118400.0,118390.0,1.0681]
[1753031738864,0.7428856,118400.0,118390.0,1.0681]
[1753031739065,0.95843843,118400.0,118390.0,1.0681]
[1753031739369,0.95843843,118400.0,118390.0,1.06798]
[1753031739570,0.95843843,118400.0,118390.0,0.44202]
[1753031739867,0.95843843,118400.0,118390.0,1.06782]
[1753031740566,0.95843843,118400.0,118390.0,0.44202]
[1753031740767,0.95843843,118400.0,118390.0,1.06774]
[1753031741164,0.95843843,118400.0,118390.0,0.08122]
[1753031741366,0.95843843,118400.0,118380.0,0.3608]
[1753031741367,0.4888999,118390.0,118380.0,0.3608]
[1753031741557,0.1688741,118380.0,118370.0,0.3608]
[1753031741756,0.4195484,118370.0,118360.0,0.19731]
[1753031741961,0.78486538,118370.0,118360.0,0.82295]
[1753031742161,0.80344773,118370.0,118360.0,0.82295]
[1753031742561,0.76751075,118370.0,118360.0,1.03850283]
[1753031742959,0.76751075,118370.0,118360.0,0.82295]
[1753031743563,0.76751075,118370.0,118360.0,1.03850283]
[1753031743761,0.76751075,118370.0,118360.0,0.82295]
[1753031743963,0.76951075,118370.0,118360.0,1.03850283]
[1753031744163,0.76951075,118370.0,118360.0,0.82295]
[1753031744375,0.76951075,118370.0,118360.0,1.03850283]
[1753031744767,0.76951075,118370.0,118360.0,0.82295]
[1753031745666,0.76951075,118370.0,118360.0,1.03850283]
[1753031746074,1.13031075,118370.0,118360.0,1.03850283]
[1753031746278,1.13031075,118370.0,118360.0,0.82295]
[1753031746766,1.13031075,118370.0,118360.0,1.03850283]
[1753031747280,1.13031075,118370.0,118360.0,0.19731]
[1753031747568,0.6156249,118360.0,118350.0,0.08122]
[1753031747768,1.44197773,118360.0,118350.0,0.08122]
[1753031747973,1.2264249,118360.0,118350.0,0.70662]
[1753031748164,0.1689167,118350.0,118340.0,0.47689]
[1753031748366,1.1197567,118350.0,118340.0,0.08122]
[1753031748573,1.1197567,118350.0,118340.0,0.70658]
[1753031749072,1.22398632,118350.0,118340.0,0.70658]
[1753031749474,1.22398632,118350.0,118340.0,0.08122]
[1753031749667,1.22398632,118350.0,118340.0,0.70658]
[1753031750073,1.18857194,118350.0,118340.0,0.70658]
[1753031750373,1.18857194,118350.0,118340.0,1.03822283]
[1753031750567,1.18957194,118350.0,118340.0,1.03922283]
[1753031750767,0.82877194,118350.0,118340.0,1.03922283]
[1753031750968,1.18957194,118350.0,118340.0,1.03922283]
[1753031751774,1.1207567,118350.0,118340.0,1.03922283]
[1753031752578,1.13967167,118350.0,118340.0,1.03922283]
[1753031753874,0.77887167,118350.0,118340.0,1.05632661]
[1753031754069,0.53230497,118350.0,118340.0,1.60525731]
[1753031754272,0.28991497,118350.0,118340.0,1.96605731]
[1753031754678,0.15491,118350.0,118340.0,1.6163343]
[1753031754979,0.15491,118350.0,118340.0,1.9363343]
[1753031755182,0.15491,118350.0,118340.0,1.9663343]
[1753031755381,0.15491,118350.0,118340.0,1.6163343]
[1753031755572,0.15491,118350.0,118340.0,2.16533429]
[1753031755872,0.15491,118350.0,118340.0,2.3348573]
[1753031756071,0.15491,118350.0,118340.0,2.3248573]